bitfinex-derivatives/quotes_ETHF0:USTF0_20251216
["timestamp","ask_amount","ask_price","bid_price","bid_amount"]
[1765915951826,0.53082902,2944.2,2944.1,0.7244]
[1765915952225,0.53082902,2944.2,2944.1,1.5052]
[1765915953427,0.5308901,2944.2,2944.1,1.5052]
[1765915956025,1.2431901,2944.2,2944.1,1.5052]
[1765915956224,0.7134,2944.1,2944.0,1.2111]
[1765915956424,0.00850862,2944.3,2944.2,1.5596]
[1765915957829,8.62e-06,2944.3,2944.2,1.5596]
[1765915961030,0.85286446,2944.9,2944.8,1.5596]
[1765915961232,1.64384936,2945.4,2945.3,1.5596]
[1765915961430,0.7856,2945.1,2945.0,1.245]
[1765915961628,1.64384936,2945.1,2945.0,2.0263]
[1765915962037,2.42022801,2945.1,2945.0,0.4667]
[1765915962236,2.42022801,2945.1,2944.5,0.4667]
[1765915962438,1.5593,2944.6,2944.5,0.4667]
[1765915962739,0.85824936,2944.6,2944.5,2.0263]
[1765915963445,4.936e-05,2944.6,2944.5,2.0263]
[1765915966442,0.78564936,2944.6,2944.5,1.5596]
[1765915967043,4.936e-05,2944.6,2944.5,0.4667]
[1765915968342,0.00267865,2945.1,2944.5,0.4667]
[1765915968543,0.00267865,2945.1,2945.0,2.0263]
[1765915968744,1.56197865,2945.1,2945.0,0.7783]
[1765915969246,0.00267865,2945.1,2945.0,2.0263]
[1765915970942,2.18437191,2945.1,2944.5,0.4667]
[1765915971148,0.7856,2944.6,2944.5,1.5596]
[1765915971450,1.40800326,2944.9,2944.8,1.5596]
[1765915971650,1.72912,2944.9,2944.8,0.7783]
[1765915971846,1.82947878,2945.1,2944.5,0.4667]
[1765915971847,0.00267865,2945.1,2945.0,2.0263]
[1765915976351,0.00509416,2945.3,2945.2,1.5596]
[1765915976554,0.85806031,2945.6,2945.5,2.0263]
[1765915976745,0.85806031,2945.7,2945.6,1.5596]
[1765915976949,0.85806031,2945.9,2945.8,1.5596]
[1765915977451,2.42011273,2945.9,2945.8,0.78262286]
[1765915977753,1.64641273,2945.9,2945.8,1.56392286]
[1765915978351,0.78835242,2945.9,2945.8,1.56392286]
[1765915978552,0.00275242,2945.9,2945.8,1.56392286]
[1765915978945,0.78835242,2945.9,2945.8,1.56392286]
[1765915980446,0.00275242,2945.9,2945.8,1.56392286]
[1765915980651,0.78835242,2945.9,2945.8,1.56392286]
[1765915981958,1.56205242,2945.9,2945.8,0.78262286]
[1765915982161,1.56205242,2945.9,2945.8,1.56392286]
[1765915982562,0.78835242,2945.9,2945.8,1.56392286]
[1765915982756,0.00275242,2945.9,2945.8,1.56392286]
[1765915982956,0.1697,2947.0,2946.9,1.5596]
[1765915983161,5.5756,2947.1,2947.0,1.5596]
[1765915983953,5.57913181,2947.1,2947.0,1.5596]
[1765915984160,0.00353181,2947.1,2947.0,2.0123]
[1765915985361,0.16964,2948.0,2947.9,1.5165]
[1765915986364,1.69243233,2948.0,2947.9,0.0024358]
[1765915986560,0.17283233,2948.0,2947.9,1.5189358]
[1765915986756,16.05983233,2948.0,2947.9,1.5189358]
[1765915987564,0.17283233,2948.0,2947.9,1.5189358]
[1765915989158,0.00319233,2948.0,2947.9,1.5189358]
[1765915992563,0.63899,2949.0,2948.1,1.5165]
[1765915992767,1.68919,2949.0,2948.9,0.737]
[1765915992964,4.55159,2949.0,2948.9,1.5165]
[1765915993359,0.16959,2949.0,2948.9,1.5165]
[1765915993559,0.17318176,2949.0,2948.9,1.5165]
[1765915995969,0.00359176,2949.0,2948.9,1.5165]
[1765915999573,0.75849176,2949.0,2948.9,1.5165]
[1765916000680,0.00359176,2949.0,2948.9,1.5165]
[1765916002276,0.75849176,2949.0,2948.9,1.5165]
[1765916002673,0.00359176,2949.0,2948.9,1.5165]
[1765916003079,0.75849176,2949.0,2948.9,1.5165]
[1765916004877,1.68922,2948.3,2948.2,0.737]
[1765916005077,0.16959,2948.9,2948.8,0.737]
[1765916005274,0.9245,2948.8,2948.7,1.5165]
[1765916005581,0.1696,2948.8,2948.7,1.5165]
[1765916005779,1.5196,2948.6,2948.5,1.1897]
[1765916005984,1.6892,2948.6,2948.5,1.5165]
[1765916006278,1.5196,2948.5,2948.0,0.4527]
[1765916006581,1.5196,2948.1,2948.0,1.5165]
[1765916007170,0.7549,2948.1,2948.0,1.5165]
[1765916007377,0.92452,2948.3,2948.2,1.5165]
[1765916008382,1.5196,2948.8,2948.7,1.5165]
[1765916008583,11.6426,2948.8,2948.7,1.5165]
[1765916008783,1.68919,2948.8,2948.7,1.5165]
[1765916008993,17.56819,2948.8,2948.7,1.5165]
[1765916009286,1.68919,2948.8,2948.7,1.5165]
[1765916009483,0.16959,2948.8,2948.7,1.5165]
[1765916009678,0.00359176,2949.0,2948.9,1.5165]
[1765916010980,0.16956,2949.4,2949.1,1.5165]
[1765916011373,0.75826557,2949.2,2949.1,1.5165]
[1765916011580,1.69253557,2949.2,2948.5,0.4527]
[1765916011774,1.69253557,2949.2,2949.1,0.737]
[1765916011977,1.69660085,2949.2,2949.1,0.737]
[1765916012586,1.69660085,2949.2,2948.5,0.4527]
[1765916013088,1.69660085,2949.2,2949.1,0.737]
[1765916015186,2.54371786,2949.2,2949.1,0.737]
[1765916015380,2.54371786,2949.2,2948.5,0.4527]
[1765916015586,1.60681701,2949.1,2949.0,0.731]
[1765916015781,1.60681701,2949.1,2949.0,1.5221]
[1765916015987,2.36191701,2949.1,2949.0,1.5221]
[1765916016388,2.36191701,2949.1,2949.0,0.731]
[1765916018089,2.36191701,2949.1,2949.0,1.5221]
[1765916018795,2.36191701,2949.1,2949.0,0.731]
[1765916019897,2.36191701,2949.1,2948.5,0.4527]
[1765916020094,2.83011701,2949.0,2948.5,0.4527]
[1765916020294,2.36191701,2948.9,2948.8,0.731]
[1765916021099,1.5148,2948.6,2948.5,1.5221]
[1765916021399,0.9293,2948.7,2948.6,1.5221]
[1765916021604,1.77641701,2948.7,2948.6,1.5221]
[1765916021897,0.84711701,2948.9,2948.8,1.5221]
[1765916022094,0.7597,2949.1,2949.0,1.9707]
[1765916022292,1.61498425,2949.1,2949.0,1.9707]
[1765916022496,1.68438,2949.0,2948.9,0.731]
[1765916022794,1.5148,2948.6,2948.5,1.5221]
[1765916023093,2.37008425,2948.6,2948.5,1.5221]
[1765916023496,0.85528425,2948.6,2948.5,1.9707]
[1765916023701,0.1696,2948.7,2948.6,1.5221]
[1765916024397,1.61498425,2949.1,2949.0,1.9707]
[1765916024899,2.37008425,2949.1,2949.0,1.5221]
[1765916025111,1.61498425,2949.1,2949.0,1.9707]
[1765916025298,1.5148,2949.1,2949.0,1.9707]
[1765916026205,2.53966425,2949.1,2949.0,1.9707]
[1765916026511,2.53966425,2949.1,2949.0,0.731]
[1765916026899,2.53966425,2949.1,2949.0,1.5221]
[1765916027993,1.02486425,2949.1,2949.0,1.9707]
[1765916028806,0.16958,2949.1,2949.0,1.9707]
[1765916029807,0.92928,2949.1,2949.0,1.9707]
[1765916030007,0.16958,2949.1,2949.0,1.9707]
[1765916030203,0.92928,2949.1,2949.0,1.9707]
[1765916030408,0.16958,2949.1,2949.0,1.9707]
[1765916031198,0.92928,2949.1,2949.0,1.9707]
[1765916032114,1.68431,2950.3,2950.2,0.731]
[1765916032312,1.68431,2950.3,2949.5,0.4486]
[1765916032513,1.68431,2950.3,2950.2,1.5221]
[1765916032514,0.92921,2950.3,2950.2,1.5221]
[1765916032807,0.16951,2950.3,2950.2,1.5221]
[1765916033106,1.30213157,2950.4,2950.2,1.5221]
[1765916033107,1.30213157,2950.4,2950.3,1.5221]
[1765916033311,16.6257,2950.6,2950.5,1.5221]
[1765916033513,18.23883766,2950.6,2950.2,0.00369497]
[1765916033707,0.7597,2950.3,2950.2,1.52579497]
[1765916033902,1.68431,2950.3,2950.2,1.52579497]
[1765916034106,1.68431,2950.3,2950.2,0.00369497]
[1765916039513,1.5148,2949.6,2949.5,1.9707]
[1765916039713,1.5148,2949.6,2949.5,0.731]
[1765916040615,1.5148,2949.6,2949.5,0.73400797]
[1765916041218,1.5148,2949.6,2949.5,1.52510797]
[1765916041519,1.68435,2949.6,2949.5,0.00300797]
[1765916042119,1.68435,2949.6,2948.5,1.9707]
[1765916042120,0.7597,2948.6,2948.5,1.9707]
[1765916042314,14.19759,2949.0,2948.9,1.5221]
[1765916042514,0.92925,2949.6,2949.5,1.5221]
[1765916042717,53.35235,2949.6,2949.5,0.731]
[1765916043122,53.35235,2949.6,2949.5,0.73346887]
[1765916043316,58.34435,2949.6,2949.5,1.52456887]
[1765916043517,17.54435,2949.6,2949.5,0.73346887]
[1765916044013,17.54435,2949.6,2949.5,0.00246887]
[1765916044221,1.71526,2949.4,2949.3,0.00508544]
[1765916044419,4.06204627,2949.4,2949.3,0.00508544]
[1765916044925,0.7751,2948.6,2948.5,1.9824]
[1765916045118,0.7751,2948.6,2948.5,1.98480302]
[1765916045424,17.57729,2948.9,2948.8,0.7582]
[1765916047123,17.57729,2948.9,2948.8,1.5338]
[1765916047124,16.03159,2948.9,2948.8,1.5338]
[1765916047314,17.57729,2948.9,2948.8,0.7582]
[1765916047516,17.57729,2948.9,2948.8,1.5338]
[1765916047821,17.57729,2948.9,2948.8,0.7582]
[1765916048011,0.7751,2948.7,2948.6,1.53888544]
[1765916048622,16.80669,2948.9,2948.8,1.5338]
[1765916048819,0.16959,2948.9,2948.8,1.5338]
[1765916049024,0.16955,2949.5,2949.3,0.7756]
[1765916049215,0.16955,2949.5,2949.4,1.5338]
[1765916049823,0.00505637,2949.8,2949.7,1.5338]
[1765916050217,0.78015637,2949.8,2949.7,1.5338]
[1765916050423,1.71525,2949.6,2949.0,0.4428]
[1765916050623,0.94465,2949.6,2949.5,1.5338]
[1765916050820,0.94465,2949.6,2949.5,1.9766]
[1765916052321,0.94465,2949.6,2949.5,1.5338]
[1765916052523,1.71525,2949.6,2949.5,0.7582]
[1765916052818,1.71525,2949.6,2949.0,0.4428]
[1765916053421,1.71525,2949.6,2949.5,0.7582]
[1765916053623,1.71525,2949.6,2949.0,0.4428]
[1765916054025,1.71525,2949.6,2949.5,0.7582]
[1765916054419,0.16955,2949.5,2949.0,0.4428]
[1765916054620,0.94465,2949.5,2949.4,1.5338]
[1765916054819,0.16955,2949.5,2949.4,1.5338]
[1765916055013,0.00505637,2949.8,2949.7,1.5338]
[1765916056023,1.54921147,2950.6,2950.5,1.5338]
[1765916056227,2.89270147,2950.6,2950.5,1.5338]
[1765916056422,43.69270147,2950.6,2950.5,0.7582]
[1765916056627,58.37770147,2950.6,2950.5,0.7582]
[1765916056827,42.51870147,2950.6,2950.5,0.7582]
[1765916057018,58.37770147,2950.6,2950.5,1.5338]
[1765916057222,42.51870147,2950.6,2950.5,1.5338]
[1765916057424,16.03100147,2950.6,2950.5,1.9766]
[1765916057726,0.17300147,2950.6,2950.5,1.9766]
[1765916058123,0.94810147,2950.6,2950.5,1.9766]
[1765916058317,1.71870147,2950.6,2950.5,1.5338]
[1765916058520,0.17300147,2950.6,2950.5,1.9766]
[1765916060834,1.71870147,2950.6,2950.5,0.7582]
[1765916061023,0.00351147,2950.6,2950.5,1.9766]
[1765916070837,1.54921147,2950.6,2950.5,1.9766]
[1765916071137,0.77861147,2950.6,2950.5,1.9766]
[1765916071336,0.00351147,2950.6,2950.5,1.9766]
[1765916071537,1.71870147,2950.6,2950.5,0.7582]
[1765916071740,1.7152,2950.4,2950.3,0.00508544]
[1765916071925,0.16951,2950.2,2949.5,0.4428]
[1765916072133,0.94463,2950.0,2949.9,1.5338]
[1765916072335,0.94463,2950.0,2949.5,0.4428]
[1765916072336,1.71523,2950.0,2949.5,0.4428]
[1765916072639,1.5457,2949.6,2949.0,0.4428]
[1765916072830,1.5457,2949.6,2949.5,0.7582]
[1765916073241,0.7751,2949.6,2949.5,1.5338]
[1765916073439,1.71523,2949.9,2949.8,1.5338]
[1765916073738,1.71523,2949.9,2949.8,0.7582]
[1765916074939,0.7371,2949.6,2949.5,1.9411]
[1765916075139,0.16953,2949.9,2949.5,1.9411]
[1765916076242,1.64393,2949.9,2949.8,0.7228]
[1765916076636,1.64393,2949.9,2949.5,0.4428]
[1765916077042,17.3204,2949.8,2949.7,0.7228]
[1765916077843,1.4744,2949.6,2949.5,1.9411]
[1765916078145,0.7371,2949.6,2949.5,1.9411]
[1765916079148,17.3204,2949.8,2949.7,1.4983]
[1765916079648,17.3204,2949.8,2949.7,0.7228]
[1765916080335,0.7371,2949.6,2949.5,1.9411]
[1765916081349,2.11710525,2949.6,2949.5,1.9411]
[1765916083347,1.4744,2949.4,2949.3,0.00508544]
[1765916083548,4.2344105,2949.4,2949.3,0.00508544]
[1765916083747,4.2344105,2949.4,2949.3,0.72788544]
[1765916084342,4.4039705,2949.4,2949.3,0.00508544]
[1765916084542,0.16957,2949.2,2948.5,0.44520302]
[1765916084750,1.38000525,2948.6,2948.5,1.94350302]
[1765916084943,2.11710525,2948.6,2948.5,1.94350302]
[1765916085449,1.38000525,2948.6,2948.5,1.94350302]
[1765916087344,0.74218544,2948.8,2948.7,1.4983]
[1765916088947,1.47948544,2948.8,2948.7,0.7228]
[1765916089152,1.4744,2948.6,2948.5,1.50070302]
[1765916089749,0.74218544,2948.8,2948.7,1.4983]
[1765916090353,1.4744,2948.6,2948.5,1.93990302]
[1765916090853,1.47948544,2948.8,2948.7,1.4983]
[1765916094365,0.74218544,2948.8,2948.7,1.4983]
[1765916094756,1.47948544,2948.8,2948.7,1.4983]
[1765916096762,1.47948544,2948.8,2948.7,0.7228]
[1765916097165,1.4744,2948.6,2948.5,0.00240302]
[1765916097358,3.54551632,2948.6,2948.5,0.00240302]
[1765916097558,3.54551632,2948.6,2948.3,0.00508544]
[1765916097559,1.64402,2948.4,2948.3,0.00508544]
[1765916097965,17.49402,2948.4,2948.3,0.00508544]
[1765916098266,58.29402,2948.4,2948.3,0.72788544]
[1765916098665,58.29838868,2948.4,2948.3,0.73194244]
[1765916099171,58.29838868,2948.4,2948.3,0.00914244]
[1765916101470,0.7371,2947.1,2947.0,1.9375]
[1765916101664,1.4744,2947.1,2947.0,0.7228]
[1765916101970,1.4744,2947.1,2947.0,1.4983]
[1765916102371,1.64408,2947.4,2947.3,1.4983]
[1765916102561,16.02068,2947.4,2947.3,1.4983]
[1765916102761,3.54634137,2947.9,2947.8,1.4983]
[1765916102963,19.39834137,2947.9,2947.8,1.4983]
[1765916103166,3.54634137,2947.9,2947.8,0.7228]
[1765916103368,3.54634137,2947.9,2947.8,1.4983]
[1765916103570,0.16964,2948.0,2947.9,1.4983]
[1765916103766,16.02164,2948.0,2947.9,1.4983]
[1765916103962,16.75874,2948.0,2947.9,1.4983]
[1765916104169,17.47124,2948.0,2947.9,1.4983]
[1765916104466,0.16964,2948.0,2947.9,1.4983]
[1765916104671,3.57384137,2948.3,2948.2,1.5243]
[1765916104868,0.00508544,2948.8,2948.3,1.5243]
[1765916104869,0.00436868,2948.4,2948.3,1.5243]
[1765916105077,0.79376868,2948.4,2948.3,1.5243]
[1765916105273,1.67588868,2948.4,2948.3,0.79]
[1765916105473,0.7894,2948.1,2948.0,1.9829]
[1765916106971,1.5019,2948.1,2948.0,1.9829]
[1765916107170,1.5019,2948.1,2948.0,1.5243]
[1765916107474,1.67153,2948.3,2948.2,1.5243]
[1765916107864,1.67153,2948.3,2948.2,0.79]
[1765916108269,1.5019,2948.1,2947.5,0.4392]
[1765916108776,1.38131021,2947.6,2947.5,1.9635]
[1765916108976,2.17071021,2947.6,2947.5,1.9635]
[1765916109179,2.88321021,2947.6,2947.5,1.9635]
[1765916109370,2.17071021,2947.6,2947.5,1.9635]
[1765916110067,2.88757889,2948.4,2948.3,0.79]
[1765916110272,20.2915091,2948.4,2948.3,0.79]
[1765916110467,4.4385091,2948.4,2948.3,0.79]
[1765916110671,0.7894,2948.1,2948.0,1.9829]
[1765916110875,2.17071021,2948.1,2948.0,1.9829]
[1765916111472,0.4352,2948.0,2947.0,0.44288122]
[1765916111771,2.17071021,2947.2,2947.1,1.5243]
[1765916112473,1.38131021,2947.2,2947.1,1.5243]
[1765916113177,0.4352,2948.0,2947.1,1.5243]
[1765916113178,0.00436868,2948.4,2948.3,1.5243]
[1765916113374,0.7894,2948.1,2948.0,1.9829]
[1765916113576,1.5019,2948.1,2948.0,0.79]
[1765916113874,1.5019,2948.1,2948.0,1.9829]
[1765916114075,1.67152,2948.3,2948.2,0.79]
[1765916114379,0.7894,2948.1,2948.0,1.9829]
[1765916114578,1.5019,2948.1,2948.0,0.79]
[1765916114974,1.5019,2948.1,2948.0,1.5243]
[1765916115979,0.95902,2948.3,2948.2,1.5243]
[1765916116177,1.67152,2948.3,2948.2,0.79]
[1765916116376,1.5019,2948.1,2948.0,1.9829]
[1765916116575,0.7894,2948.1,2948.0,1.9829]
[1765916116777,1.67152,2948.3,2948.2,0.79]
[1765916117374,1.67152,2948.3,2948.2,1.5243]
[1765916117780,1.67152,2948.3,2948.2,0.79]
[1765916118682,1.5019,2948.1,2948.0,1.9829]
[1765916119180,0.7894,2948.1,2948.0,1.9829]
[1765916119581,1.67152,2948.3,2948.2,1.5243]
[1765916121174,1.67152,2948.3,2948.0,0.4586]
[1765916121175,0.00436868,2948.4,2948.3,1.5243]
[1765916121377,0.00436868,2948.4,2948.0,0.4586]
[1765916121582,0.79376868,2948.4,2948.3,1.5243]
[1765916121786,0.00436868,2948.4,2948.3,1.5243]
[1765916123083,0.79376868,2948.4,2948.3,1.5243]
[1765916123284,1.50626868,2948.4,2948.3,1.5243]
[1765916125081,0.00436868,2948.4,2948.3,1.5243]
[1765916125278,0.7894,2948.1,2948.0,1.9829]
[1765916125581,1.5019,2948.1,2948.0,1.5243]
[1765916125786,1.67153,2948.2,2948.1,1.5243]
[1765916126086,0.95903,2948.2,2948.1,1.5243]
[1765916126286,1.67153,2948.2,2948.1,1.5243]
[1765916127088,1.67153,2948.2,2948.1,0.79]
[1765916127289,1.67153,2948.2,2948.1,1.5243]
[1765916127588,0.00436868,2948.4,2948.3,1.5243]
[1765916128289,1.50626868,2948.4,2948.3,0.79]
[1765916128895,1.5019,2948.1,2948.0,1.9829]
[1765916129189,1.67588868,2948.4,2948.3,0.79]
[1765916129686,0.17398868,2948.4,2948.3,1.5243]
[1765916129880,0.79376868,2948.4,2948.3,1.5243]
[1765916130088,0.00436868,2948.4,2948.3,1.5243]
[1765916131888,0.00508544,2948.8,2948.7,1.5243]
[1765916132987,0.00816923,2948.8,2948.7,1.5243]
[1765916138796,0.7527,2949.9,2949.8,0.7356]
[1765916138991,0.7527,2949.9,2949.5,0.4403]
[1765916138992,0.92223,2950.0,2949.9,1.4779]
[1765916139385,0.16953,2949.9,2949.5,0.4403]
[1765916139591,0.7527,2949.6,2949.5,1.9182]
[1765916139890,0.00411978,2949.6,2949.5,1.92241861]
[1765916141185,0.75681978,2949.6,2949.5,1.92241861]
[1765916141891,1.49711978,2949.6,2949.5,0.00421861]
[1765916142097,1.66666978,2949.6,2949.5,0.00421861]
[1765916142494,7.66666978,2949.6,2949.5,0.00421861]
[1765916142699,1.66666978,2949.6,2949.5,0.00421861]
[1765916142999,0.16957,2949.2,2948.5,0.46368544]
[1765916143198,16.01757,2949.2,2948.5,0.46368544]
[1765916144096,16.01757,2949.2,2948.5,0.46690364]
[1765916144703,40.8,2949.1,2948.5,0.46690364]
[1765916144895,0.7527,2949.1,2949.0,1.4779]
[1765916145302,1.493,2949.1,2949.0,0.7356]
[1765916145504,1.493,2949.1,2948.5,0.46690364]
[1765916146501,0.7527,2949.1,2949.0,1.4779]
[1765916146696,0.00411978,2949.6,2949.0,1.4779]
[1765916146697,0.00411978,2949.6,2949.5,1.1826]
[1765916146901,0.00411978,2949.6,2949.5,1.9182]
[1765916155801,1.978e-05,2949.6,2949.5,1.9182]
[1765916156007,1.5355,2950.4,2950.3,1.4779]
[1765916156205,3.0285,2950.4,2950.3,1.4779]
[1765916156905,3.03141691,2950.4,2950.3,0.7356]
[1765916157998,3.03141691,2950.4,2950.3,1.4779]
[1765916158403,2.29111691,2950.4,2950.3,1.4779]
[1765916158609,1.36891691,2950.4,2950.3,1.4779]
[1765916159300,2.12161691,2950.4,2950.3,1.4779]
[1765916160411,1.493,2950.2,2950.1,0.00508544]
[1765916160707,1.66251,2950.2,2950.1,0.00508544]
[1765916161607,0.4561,2950.0,2949.0,0.4403]
[1765916162401,0.62562,2950.0,2949.0,0.4403]
[1765916162602,0.62562,2950.0,2949.2,0.00508544]
[1765916164310,0.16953,2949.9,2949.2,0.00508544]
[1765916164709,0.4561,2950.0,2949.2,0.00508544]
[1765916165010,0.16954,2949.7,2949.2,0.00508544]
[1765916165404,1.5099,2949.3,2949.2,0.00508544]
[1765916166611,1.5099,2949.3,2949.2,0.77278544]
[1765916168409,1.5099,2949.3,2949.2,0.00508544]
[1765916168807,1.5099,2949.3,2949.2,0.77278544]
[1765916169309,1.4718,2949.9,2949.8,1.4799]
[1765916169615,0.7146,2949.6,2949.5,1.9285]
[1765916170214,0.60393,2950.0,2949.5,1.9285]
[1765916170416,1.4718,2949.6,2949.5,0.7677]
[1765916170613,1.4718,2949.3,2949.2,1.48498544]
[1765916170808,0.7146,2949.3,2949.2,1.48498544]
[1765916171014,0.16954,2949.8,2949.2,1.48498544]
[1765916171308,1.64134,2949.8,2949.7,0.7677]
[1765916171514,1.64134,2949.8,2949.7,1.4799]
[1765916171708,1.64134,2949.8,2949.2,0.00508544]
[1765916172108,1.64134,2949.8,2949.7,1.4799]
[1765916172314,0.16954,2949.8,2949.7,1.4799]
[1765916172508,40.8,2950.2,2949.7,1.4799]
[1765916172816,1.64131,2950.3,2949.5,0.4486]
[1765916175814,1.4718,2949.6,2949.5,1.4799]
[1765916176118,1.4718,2949.3,2949.2,0.00508544]
[1765916176418,1.64136,2949.3,2949.2,0.00508544]
[1765916176716,1.4718,2948.6,2948.5,1.4831182]
[1765916177218,0.16959,2948.8,2948.7,1.4799]
[1765916177414,1.64139,2948.8,2948.7,0.7677]
[1765916178120,1.4718,2948.6,2948.5,0.00830364]
[1765916178620,1.4718,2948.6,2948.5,0.77600364]
[1765916179031,1.4718,2948.6,2948.5,0.00830364]
[1765916179318,1.6414,2948.6,2948.5,0.00830364]
[1765916180710,1.4718,2947.6,2947.0,0.4486]
[1765916181617,2.75530543,2948.0,2947.0,0.4486]
[1765916181618,0.16965,2947.9,2947.5,1.4799]
[1765916181816,40.8,2948.2,2948.1,0.7677]
[1765916182020,0.00313889,2948.2,2948.1,1.4799]
[1765916183509,1.4718,2948.1,2948.0,0.7677]
[1765916183714,1.4718,2948.1,2947.5,0.4486]
[1765916183907,0.71773889,2948.2,2948.1,1.4799]
[1765916184225,0.00313889,2948.2,2948.1,7.4799]
[1765916184518,0.00313889,2948.2,2948.1,1.4799]
[1765916184719,0.00313889,2948.2,2948.1,7.4799]
[1765916185416,0.00313889,2948.2,2948.1,1.4799]
[1765916188115,1.47688544,2949.0,2948.5,0.4486]
[1765916188315,1.88888544,2949.0,2948.5,0.4486]
[1765916189022,1.89284216,2949.0,2948.5,0.4486]
[1765916189423,0.7146,2948.6,2948.5,1.9285]
[1765916189616,0.42104216,2949.0,2948.5,1.9285]
[1765916192422,0.42104216,2949.0,2948.9,0.7677]
[1765916192423,1.89284216,2949.0,2948.9,0.7677]
[1765916192814,1.4718,2948.8,2948.7,1.48329026]
[1765916193317,1.4718,2948.8,2948.7,0.00339026]
[1765916193723,0.17862216,2949.0,2948.9,0.7677]
[1765916193922,1.67532216,2949.0,2948.9,1.4799]
[1765916194217,0.00904216,2949.0,2948.9,1.4799]
[1765916195326,1.49004216,2949.0,2948.9,1.4799]
[1765916195534,0.7388,2948.8,2948.7,0.72799026]
[1765916195824,1.50784216,2949.0,2948.9,1.483]
[1765916196423,1.50784216,2949.0,2948.9,0.7246]
[1765916196623,1.50784216,2949.0,2948.9,1.483]
[1765916197727,1.4988,2948.8,2948.7,1.48639026]
[1765916198038,0.74784216,2949.0,2948.9,1.483]
[1765916198525,1.50784216,2949.0,2948.9,1.483]
[1765916199124,1.4988,2948.8,2948.7,0.72799026]
[1765916199330,1.4988,2948.8,2948.7,1.48639026]
[1765916200129,1.4988,2948.8,2948.7,0.72799026]
[1765916200829,1.4988,2948.8,2948.7,1.48639026]
[1765916202632,1.67742216,2949.0,2948.9,1.483]
[1765916202829,0.91742216,2949.0,2948.9,1.483]
[1765916203032,1.67742216,2949.0,2948.9,1.483]
[1765916203333,0.7388,2948.8,2948.7,1.48639026]
[1765916203830,1.67742216,2949.0,2948.9,1.483]
[1765916204231,1.67742216,2949.0,2948.9,0.7246]
[1765916204424,1.67742216,2949.0,2948.9,1.483]
[1765916204831,0.91742216,2949.0,2948.9,1.483]
[1765916205031,1.67742216,2949.0,2948.9,1.483]
[1765916206135,0.17862216,2949.0,2948.9,1.483]
[1765916206339,0.91742216,2949.0,2948.9,1.483]
[1765916206533,1.67742216,2949.0,2948.9,0.7246]
[1765916206930,1.67742216,2949.0,2948.9,1.483]
[1765916207126,1.4988,2948.8,2948.7,1.48639026]
[1765916207533,0.7388,2948.8,2948.7,1.48639026]
[1765916207835,1.67742216,2949.0,2948.9,1.483]
[1765916208334,1.67742216,2949.0,2948.7,0.00339026]
[1765916208335,1.4988,2948.8,2948.7,0.72799026]
[1765916208530,1.4988,2948.8,2948.7,0.00339026]
[1765916210230,1.66839,2948.8,2948.7,0.00339026]
[1765916211631,1.66839,2948.8,2948.7,0.72799026]
[1765916211832,1.66839,2948.8,2948.7,1.48639026]
[1765916212841,1.66839,2948.8,2948.7,0.72799026]
[1765916213140,1.66839,2948.8,2948.7,0.00339026]
[1765916214343,1.66839,2948.8,2948.7,1.48639026]
[1765916215435,3.04909871,2948.8,2948.7,1.48639026]
[1765916217243,3.04909871,2948.8,2948.7,0.00339026]
[1765916217540,3.04909871,2948.8,2948.7,0.72799026]
[1765916217842,3.04909871,2948.8,2948.7,0.00339026]
[1765916218047,0.1696,2948.7,2948.0,0.4486]
[1765916218244,2.87950871,2948.1,2948.0,1.9316]
[1765916218445,1.4988,2947.9,2947.8,3.72974323]
[1765916218741,1.4988,2947.6,2947.5,0.7246]
[1765916218945,1.4988,2947.1,2947.0,4.94060825]
[1765916219142,1.4988,2947.1,2947.0,0.00386502]
[1765916220342,1.4988,2947.1,2946.0,4.64090548]
[1765916220343,1.4988,2946.4,2946.0,0.4553]
[1765916220540,1.4988,2946.4,2946.3,0.7246]
[1765916220939,1.4988,2946.1,2945.5,0.4553]
[1765916221333,1.4988,2945.6,2945.5,0.00263033]
[1765916221533,1.4988,2945.6,2945.5,1.48563033]
[1765916221836,1.4988,2945.6,2945.5,0.00263033]
[1765916223042,0.00249757,2946.1,2946.0,1.483]
[1765916223347,0.74129757,2946.1,2946.0,1.483]
[1765916223542,0.00249757,2946.1,2946.0,1.9383]
[1765916224439,0.00249757,2946.1,2945.5,0.45793033]
[1765916224440,1.48559757,2946.1,2945.5,0.45793033]
[1765916224747,1.48559757,2946.1,2946.0,0.7628]
[1765916224946,0.00249757,2946.1,2946.0,1.9533]
[1765916225944,40.8,2946.9,2946.8,0.7628]
[1765916226148,2.67770642,2947.0,2946.0,0.4355]
[1765916226937,2.68204222,2947.0,2946.0,0.4355]
[1765916227143,3.73074222,2947.0,2946.9,0.7628]
[1765916227752,3.73074222,2947.0,2946.5,0.4355]
[1765916227946,0.0043358,2947.0,2946.9,1.5178]
[1765916228547,0.00508544,2947.3,2947.2,1.5178]
[1765916228751,2.07360642,2948.2,2947.2,1.5178]
[1765916229554,2.07714537,2948.2,2947.2,1.5178]
[1765916229753,0.7688,2947.6,2947.5,1.9533]
[1765916229953,0.43298544,2948.0,2947.5,1.9533]
[1765916229954,1.48818544,2948.0,2947.9,0.7628]
[1765916230154,1.48818544,2948.0,2947.9,0.76596603]
[1765916230847,0.00508544,2948.0,2947.9,1.52096603]
[1765916231050,1.48818544,2948.0,2947.9,0.00316603]
[1765916231250,1.48818544,2948.0,2947.9,0.76596603]
[1765916231657,1.48818544,2948.0,2947.9,1.52096603]
[1765916231855,1.48818544,2948.0,2947.9,0.00316603]
[1765916232357,1.911,2947.5,2947.4,0.00508544]
[1765916232857,1.911,2947.5,2946.5,0.4355]
[1765916233065,3.55670642,2947.6,2947.5,0.7628]
[1765916233360,3.55670642,2947.6,2947.5,1.52040342]
[1765916233361,0.7688,2947.6,2947.5,1.52040342]
[1765916233560,0.60262544,2948.0,2947.5,1.95590342]
[1765916233864,0.7688,2947.6,2947.5,1.95590342]